fUSD/lending_fUSD_20250622
["ID","MTS","AMOUNT","RATE_DAILY","PERIOD"]
[366912690,1750567850730,-3067.45,0.00019178,2]
[366912691,1750567850739,-490.0,0.00019178,2]
[366912692,1750567850749,-1050.09,0.00019178,2]
[366912693,1750567850758,-490.0,0.00019178,2]
[366912694,1750567850767,-490.0,0.00019178,2]
[366912695,1750567850776,-490.0,0.00019178,2]
[366912696,1750567850786,-497.09458864,0.00019178,2]
[366912697,1750567850795,-2028.41,0.00019178,2]
[366912698,1750567850805,-5822.29,0.00019178,2]
[366912699,1750567850814,-5822.29,0.00019178,2]
[366912700,1750567850823,-5822.29,0.00019178,2]
[366912701,1750567850833,-5822.29,0.00019178,2]
[366912702,1750567850843,-490.0,0.00019178,2]
[366912703,1750567850852,-5822.29,0.00019178,2]
[366912704,1750567850861,-1050.65,0.00019178,2]
[366912705,1750567850871,-490.0,0.00019178,2]
[366912706,1750567850880,-1707.02,0.00019178,2]
[366912707,1750567850889,-910.43172809,0.00019178,2]
[366912708,1750567850899,-910.43172809,0.00019178,2]
[366912709,1750567850909,-910.43172809,0.00019178,2]
[366912710,1750567850918,-910.43172809,0.00019178,2]
[366912711,1750567850927,-910.43172809,0.00019178,2]
[366912712,1750567850937,-910.43172809,0.00019178,2]
[366912713,1750567850946,-2484.47,0.00019178,2]
[366912714,1750567850956,-910.43172809,0.00019178,2]
[366912715,1750567850965,-910.43172809,0.00019178,2]
[366912716,1750567850974,-910.43172809,0.00019178,2]
[366912717,1750567850983,-506.81,0.00019178,2]
[366912718,1750567850993,-493.69085941,0.00019178,2]
[366912719,1750567851002,-490.0,0.00019178,2]
[366912720,1750567851012,-547.4,0.00019178,2]
[366912721,1750567851022,-490.0,0.00019178,2]
[366912722,1750567851032,-490.0,0.00019178,2]
[366912723,1750567851042,-490.0,0.00019178,2]
[366912724,1750567851051,-2024.04,0.00019178,2]
[366912725,1750567851061,-509.69738864,0.00019178,2]
[366912726,1750567851070,-582.64,0.00019178,2]
[366912727,1750567851080,-2407.06,0.00019178,2]
[366912728,1750567851089,-2407.06,0.00019178,2]
[366912729,1750567851099,-3104.81,0.00019178,2]
[366912730,1750567851108,-2407.06,0.00019178,2]
[366912731,1750567851120,-2407.06,0.00019178,2]
[366912732,1750567851131,-2407.06,0.00019178,2]
[366912733,1750567851141,-2374.41,0.00019178,2]
[366912734,1750567851151,-490.0,0.00019178,2]
[366912735,1750567851160,-2407.06,0.00019178,2]
[366912736,1750567851171,-2407.06,0.00019178,2]
[366912737,1750567851181,-2407.06,0.00019178,2]
[366912738,1750567851190,-2407.06,0.00019178,2]
[366912739,1750567851201,-2407.06,0.00019178,2]
[366912740,1750567851211,-5886.14,0.00019178,2]
[366912741,1750567851220,-2012.6,0.00019178,2]
[366912742,1750567851230,-2041.09,0.00019178,2]
[366912743,1750567851239,-1026.53,0.00019178,2]
[366912744,1750567851249,-490.0,0.00019178,2]
[366912745,1750567851258,-490.0,0.00019178,2]
[366912746,1750567851268,-490.0,0.00019178,2]
[366912747,1750567851278,-361.00579947,0.00019178,2]
[366912748,1750567851288,-490.0,0.00019178,2]
[366912749,1750567851298,-1150.84,0.00019178,2]
[366912750,1750567851308,-490.0,0.00019178,2]
[366912751,1750567851318,-723.13,0.00019178,2]
[366912752,1750567851327,-533.84098829,0.00019178,2]
[366912753,1750567851337,-490.0,0.00019178,2]
[366912754,1750567851347,-490.0,0.00019178,2]
[366912755,1750567851357,-2302.68,0.00019178,2]
[366912756,1750567851367,-490.0,0.00019178,2]
[366912757,1750567851376,-663.31,0.00019178,2]
[366912758,1750567851387,-4376.95,0.00019178,2]
[366912759,1750567851396,-490.0,0.00019178,2]
[366912760,1750567851406,-28321.71,0.00019178,2]
[366912761,1750567851416,-2100.49,0.00019178,2]
[366912762,1750567851427,-1375.16,0.00019178,2]
[366912763,1750567851437,-720.55,0.00019178,2]
[366912764,1750567851447,-1650.55,0.00019178,2]
[366912765,1750567851456,-809.29,0.00019178,2]
[366912766,1750567851466,-490.0,0.00019178,2]
[366912767,1750567851476,-490.0,0.00019178,2]
[366912768,1750567851486,-1913.28,0.00019178,2]
[366912769,1750567851496,-495.88759374,0.00019178,2]
[366912770,1750567851506,-972.54,0.00019178,2]
[366912771,1750567851516,-2622.77,0.00019178,2]
[366912772,1750567851526,-491.17016617,0.00019178,2]
[366912773,1750567851536,-925.31,0.00019178,2]
[366912774,1750567851546,-9573.43,0.00019178,2]
[366912775,1750567851556,-2202.89,0.00019178,2]
[366912776,1750567851566,-838.99,0.00019178,2]
[366912777,1750567851575,-490.0,0.00019178,2]
[366912778,1750567851585,-36030.2,0.00019178,2]
[366912779,1750567851594,-705.96,0.00019178,2]
[366912780,1750567851604,-490.0,0.00019178,2]
[366912781,1750567851614,-490.0,0.00019178,2]
[366912782,1750567851624,-490.0,0.00019178,2]
[366912783,1750567851633,-1129.9,0.00019178,2]
[366912784,1750567851643,-490.0,0.00019178,2]
[366912785,1750567851653,-1593.77,0.00019178,2]
[366912786,1750567851662,-490.0,0.00019178,2]
[366912787,1750567851672,-490.0,0.00019178,2]
[366912788,1750567851682,-2764.58,0.00019178,2]
[366912789,1750567851692,-6160.7,0.00019178,2]
[366912790,1750567851702,-308.62739011,0.00019178,2]
[366912791,1750567851711,-490.0,0.00019178,2]
[366912792,1750567851722,-3086.91,0.00019178,2]
[366912793,1750567851731,-490.0,0.00019178,2]
[366912794,1750567851741,-2410.2,0.00019178,2]
[366912795,1750567851751,-491.61818048,0.00019178,2]
[366912796,1750567851760,-3977.55,0.00019178,2]
[366912797,1750567851769,-490.0,0.00019178,2]
[366912798,1750567851779,-2573.35,0.00019178,2]
[366912799,1750567851789,-1513.9,0.00019178,2]
[366912800,1750567851799,-1847.3,0.00019178,2]
[366912801,1750567851809,-490.0,0.00019178,2]
[366912802,1750567851819,-626.98,0.00019178,2]
[366912803,1750567851829,-916.52,0.00019178,2]
[366912804,1750567851838,-338.0617078,0.00019178,2]
[366912805,1750567851848,-490.0,0.00019178,2]
[366912806,1750567851858,-8393.25,0.00019178,2]
[366912807,1750567851867,-527.98,0.00019178,2]
[366912808,1750567851877,-490.0,0.00019178,2]
[366912809,1750567851887,-527.98,0.00019178,2]
[366912810,1750567851897,-490.0,0.00019178,2]
[366912811,1750567851906,-527.98,0.00019178,2]
[366912812,1750567851916,-527.98,0.00019178,2]
[366912813,1750567851927,-490.0,0.00019178,2]
[366912814,1750567851937,-527.98,0.00019178,2]
[366912815,1750567851946,-1796.57,0.00019178,2]
[366912816,1750567851955,-490.0,0.00019178,2]
[366912817,1750567851964,-527.98,0.00019178,2]
[366912818,1750567851975,-527.98,0.00019178,2]
[366912819,1750567851984,-527.98,0.00019178,2]
[366912820,1750567851994,-527.98,0.00019178,2]
[366912821,1750567852004,-527.98,0.00019178,2]
[366912822,1750567852014,-507.44166832,0.00019178,2]
[366912823,1750567852023,-490.0,0.00019178,2]
[366912824,1750567852034,-602.27,0.00019178,2]
[366912825,1750567852044,-490.0,0.00019178,2]
[366912826,1750567852054,-490.0,0.00019178,2]
[366912827,1750567852064,-490.0,0.00019178,2]
[366912828,1750567852074,-572.02224637,0.00019178,2]
[366912829,1750567852084,-6709.58,0.00019178,2]
[366912830,1750567852094,-20454.81,0.00019178,2]
[366912831,1750567852104,-490.0,0.00019178,2]
[366912832,1750567852114,-2490.14,0.00019178,2]
[366912833,1750567852127,-1095.37,0.00019178,2]
[366912834,1750567852137,-3079.33,0.00019178,2]
[366912835,1750567852147,-2948.52,0.00019178,2]
[366912836,1750567852158,-490.0,0.00019178,2]
[366912837,1750567852169,-490.0,0.00019178,2]
[366912838,1750567852179,-2343.27,0.00019178,2]
[366912839,1750567852189,-887.51,0.00019178,2]
[366912840,1750567852201,-8200.33,0.00019178,2]
[366912841,1750567852211,-2107.45,0.00019178,2]
[366912842,1750567852221,-3548.39,0.00019178,2]
[366912843,1750567852231,-1293.09,0.00019178,2]
[366912844,1750567852241,-490.0,0.00019178,2]
[366912845,1750567852251,-490.0,0.00019178,2]
[366912846,1750567852261,-490.0,0.00019178,2]
[366912847,1750567852271,-490.0,0.00019178,2]
[366912848,1750567852281,-490.0,0.00019178,2]
[366912849,1750567852291,-888.14,0.00019178,2]
[366912850,1750567852301,-3967.54,0.00019178,2]
[366912851,1750567852311,-576.70432712,0.00019178,2]
[366912852,1750567852320,-703.53,0.00019178,2]
[366912853,1750567852330,-545.54,0.00019178,2]
[366912854,1750567852339,-490.0,0.00019178,2]
[366912855,1750567852349,-663.92,0.00019178,2]
[366912856,1750567852358,-490.0,0.00019178,2]
[366912857,1750567852367,-4067.05,0.00019178,2]
[366912858,1750567852377,-1397.03,0.00019178,2]
[366912859,1750567852387,-490.0,0.00019178,2]
[366912860,1750567852397,-706.39,0.00019178,2]
[366912861,1750567852407,-490.0,0.00019178,2]
[366912862,1750567852416,-490.0,0.00019178,2]
[366912863,1750567852426,-490.0,0.00019178,2]
[366912864,1750567852436,-2801.76,0.00019178,2]
[366912865,1750567852446,-490.0,0.00019178,2]
[366912866,1750567852455,-4799.41,0.00019178,2]
[366912867,1750567852465,-1569.01,0.00019178,2]
[366912868,1750567852475,-490.0,0.00019178,2]
[366912869,1750567852485,-4387.47,0.00019178,2]
[366912870,1750567852494,-756.0,0.00019178,2]
[366912871,1750567852503,-1952.95,0.00019178,2]
[366912872,1750567852513,-490.0,0.00019178,2]
[366912873,1750567852523,-490.0,0.00019178,2]
[366912874,1750567852533,-490.0,0.00019178,2]
[366912875,1750567852542,-1063.79,0.00019178,2]
[366912876,1750567852552,-2464.47,0.00019178,2]
[366912877,1750567852562,-490.0,0.00019178,2]
[366912878,1750567852571,-490.0,0.00019178,2]
[366912879,1750567852581,-490.0,0.00019178,2]
[366912880,1750567852591,-688.12,0.00019178,2]
[366912881,1750567852600,-490.0,0.00019178,2]
[366912882,1750567852609,-490.0,0.00019178,2]
[366912883,1750567852619,-873.09,0.00019178,2]
[366912884,1750567852628,-4943.46,0.00019178,2]
[366912885,1750567852638,-567.17,0.00019178,2]
[366912886,1750567852647,-500.0,0.00019178,2]
[366912887,1750567852656,-490.0,0.00019178,2]
[366912888,1750567852666,-500.0,0.00019178,2]
[366912889,1750567852675,-1929.47,0.00019178,2]
[366912890,1750567852685,-490.0,0.00019178,2]
[366912891,1750567852694,-490.0,0.00019178,2]
[366912892,1750567852703,-490.0,0.00019178,2]
[366912893,1750567852713,-490.0,0.00019178,2]
[366912894,1750567852723,-1055.62,0.00019178,2]
[366912895,1750567852732,-1292.67,0.00019178,2]
[366912896,1750567852742,-499.86407373,0.00019178,2]
[366912897,1750567852751,-315.65450104,0.00019178,2]
[366912898,1750567852761,-490.0,0.00019178,2]
[366912899,1750567852770,-490.0,0.00019178,2]
[366912900,1750567852780,-490.0,0.00019178,2]
[366912901,1750567852789,-490.0,0.00019178,2]
[366912902,1750567852799,-490.0,0.00019178,2]
[366912903,1750567852808,-490.0,0.00019178,2]
[366912904,1750567852818,-2738.85,0.00019178,2]
[366912905,1750567852828,-1214.59,0.00019178,2]
[366912906,1750567852838,-869.72,0.00019178,2]
[366912907,1750567852848,-444.60271817,0.00019178,2]
[366912908,1750567852857,-2629.52,0.00019178,2]
[366912909,1750567852867,-490.0,0.00019178,2]
[366912910,1750567852877,-490.0,0.00019178,2]
[366912911,1750567852887,-5897.99,0.00019178,2]
[366912912,1750567852897,-490.0,0.00019178,2]
[366912913,1750567852906,-666.31,0.00019178,2]
[366912914,1750567853024,-913.01,0.00019178,2]
[366912915,1750567853035,-490.0,0.00019178,2]
[366912916,1750567853045,-1860.64,0.00019178,2]
[366912917,1750567853054,-2930.44,0.00019178,2]
[366912918,1750567853063,-6468.88,0.00019178,2]
[366912919,1750567853073,-490.0,0.00019178,2]
[366912920,1750567853083,-490.0,0.00019178,2]
[366912921,1750567853092,-500.0,0.00019178,2]
[366912922,1750567853102,-2533.12,0.00019178,2]
[366912923,1750567853112,-2012.86,0.00019178,2]
[366912924,1750567853127,-490.0,0.00019178,2]
[366912925,1750567853137,-1493.07,0.00019178,2]
[366912926,1750567853147,-500.0,0.00019178,2]
[366912927,1750567853157,-490.0,0.00019178,2]
[366912928,1750567853168,-490.0,0.00019178,2]
[366912929,1750567853177,-11980.97,0.00019178,2]
[366912930,1750567853186,-3306.17,0.00019178,2]
[366912931,1750567853198,-490.0,0.00019178,2]
[366912932,1750567853208,-490.0,0.00019178,2]
[366912933,1750567853219,-1093.55,0.00019178,2]
[366912934,1750567853228,-490.0,0.00019178,2]
[366912935,1750567853238,-490.0,0.00019178,2]
[366912936,1750567853247,-490.0,0.00019178,2]
[366912937,1750567853257,-500.0,0.00019178,2]
[366912938,1750567853267,-2611.25,0.00019178,2]
[366912939,1750567853277,-490.0,0.00019178,2]
[366912940,1750567853287,-3254.54,0.00019178,2]
[366912941,1750567853296,-490.0,0.00019178,2]
[366912942,1750567853306,-490.0,0.00019178,2]
[366912943,1750567853316,-783.61,0.00019178,2]
[366912944,1750567853326,-1044.85,0.00019178,2]
[366912945,1750567853335,-490.0,0.00019178,2]
[366912946,1750567853345,-490.0,0.00019178,2]
[366912947,1750567853355,-5312.52,0.00019178,2]
[366912948,1750567853367,-1026.45,0.00019178,2]
[366912949,1750567853376,-1180.46,0.00019178,2]
[366912950,1750567853386,-490.0,0.00019178,2]
[366912951,1750567853396,-507.80937634,0.00019178,2]
[366912952,1750567853406,-490.0,0.00019178,2]
[366912953,1750567853415,-490.0,0.00019178,2]
[366912954,1750567853425,-490.0,0.00019178,2]
[366912955,1750567853434,-1355.12,0.00019178,2]
[366912956,1750567853444,-753.54,0.00019178,2]
[366912957,1750567853454,-490.0,0.00019178,2]
[366912958,1750567853463,-842.48,0.00019178,2]
[366912959,1750567853472,-630.0,0.00019178,2]
[366912960,1750567853482,-490.0,0.00019178,2]
[366912961,1750567853492,-490.0,0.00019178,2]
[366912962,1750567853502,-8156.69,0.00019178,2]
[366912963,1750567853511,-593.07,0.00019178,2]
[366912964,1750567853520,-490.0,0.00019178,2]
[366912965,1750567853530,-2264.96,0.00019178,2]
[366912966,1750567853540,-3142.81,0.00019178,2]
[366912967,1750567853551,-490.0,0.00019178,2]
[366912968,1750567853560,-490.0,0.00019178,2]
[366912969,1750567853570,-507.03,0.00019178,2]
[366912970,1750567853580,-1603.31,0.00019178,2]
[366912971,1750567853589,-490.0,0.00019178,2]
[366912972,1750567853599,-3610.8,0.00019178,2]
[366912973,1750567853609,-490.0,0.00019178,2]
[366912974,1750567853619,-490.0,0.00019178,2]
[366912975,1750567853629,-490.0,0.00019178,2]
[366912976,1750567853638,-1358.38,0.00019178,2]
[366912977,1750567853648,-490.0,0.00019178,2]
[366912978,1750567853667,-801.89,0.00019178,2]
[366912979,1750567853677,-490.0,0.00019178,2]
[366912980,1750567853687,-1124.55,0.00019178,2]
[366912981,1750567853697,-19848.2,0.00019178,2]
[366912982,1750567853706,-490.0,0.00019178,2]
[366912983,1750567853715,-2049.87,0.00019178,2]
[366912984,1750567853725,-364.97271773,0.00019178,2]
[366912985,1750567853735,-935.99,0.00019178,2]
[366912986,1750567853745,-490.0,0.00019178,2]
[366912987,1750567853755,-1374.65,0.00019178,2]
[366912988,1750567853764,-4599.38,0.00019178,2]
[366912989,1750567853775,-490.0,0.00019178,2]
[366912990,1750567853786,-1468.73,0.00019178,2]
[366912991,1750567853797,-854.71,0.00019178,2]
[366912992,1750567853808,-7981.85,0.00019178,2]
[366912993,1750567853818,-11920.71,0.00019178,2]
[366912994,1750567853829,-490.0,0.00019178,2]
[366912995,1750567853840,-490.0,0.00019178,2]
[366912996,1750567853852,-490.0,0.00019178,2]
[366912997,1750567853863,-490.0,0.00019178,2]
[366912998,1750567853874,-3216.35,0.00019178,2]
[366912999,1750567853885,-490.0,0.00019178,2]
[366913000,1750567853896,-803.9,0.00019178,2]
[366913001,1750567853908,-490.0,0.00019178,2]
[366913002,1750567853919,-970.07,0.00019178,2]
[366913003,1750567853931,-490.0,0.00019178,2]
[366913004,1750567853942,-3354.63,0.00019178,2]
[366913005,1750567853953,-3354.63,0.00019178,2]
[366913006,1750567853963,-490.0,0.00019178,2]
[366913007,1750567853973,-3354.63,0.00019178,2]
[366913008,1750567853984,-3354.63,0.00019178,2]
[366913009,1750567853995,-308.31302982,0.00019178,2]
[366913010,1750567854006,-17286.3,0.00019178,2]
[366913011,1750567854017,-3354.63,0.00019178,2]
[366913012,1750567854028,-3354.63,0.00019178,2]
[366913013,1750567854038,-2230.28,0.00019178,2]
[366913014,1750567854050,-5741.0,0.00019178,2]
[366913015,1750567854061,-3354.63,0.00019178,2]
[366913016,1750567854071,-490.0,0.00019178,2]
[366913017,1750567854082,-490.0,0.00019178,2]
[366913018,1750567854092,-1555.82,0.00019178,2]
[366913019,1750567854103,-490.0,0.00019178,2]
[366913020,1750567854114,-4495.26,0.00019178,2]
[366913021,1750567854128,-490.0,0.00019178,2]
[366913022,1750567854139,-490.0,0.00019178,2]
[366913023,1750567854149,-8215.25,0.00019178,2]
[366913024,1750567854160,-490.0,0.00019178,2]
[366913025,1750567854171,-2715.25,0.00019178,2]
[366913026,1750567854183,-490.0,0.00019178,2]
[366913027,1750567854195,-1477.71,0.00019178,2]
[366913028,1750567854207,-1956.06,0.00019178,2]
[366913029,1750567854218,-490.0,0.00019178,2]
[366913030,1750567854230,-4281.97,0.00019178,2]
[366913031,1750567854241,-490.0,0.00019178,2]
[366913032,1750567854252,-11975.22,0.00019178,2]
[366913033,1750567854263,-1766.17,0.00019178,2]
[366913034,1750567854274,-490.0,0.00019178,2]
[366913035,1750567854286,-490.0,0.00019178,2]
[366913036,1750567854298,-501.47,0.00019178,2]
[366913037,1750567854309,-2264.38,0.00019178,2]
[366913038,1750567854320,-490.0,0.00019178,2]
[366913039,1750567854331,-490.0,0.00019178,2]
[366913040,1750567854342,-2410.86,0.00019178,2]
[366913041,1750567854353,-504.31,0.00019178,2]
[366913042,1750567854364,-1590.09,0.00019178,2]
[366913043,1750567854375,-2739.84,0.00019178,2]
[366913044,1750567854386,-490.0,0.00019178,2]
[366913045,1750567854397,-490.0,0.00019178,2]
[366913046,1750567854407,-490.0,0.00019178,2]
[366913047,1750567854419,-490.0,0.00019178,2]
[366913048,1750567854429,-490.0,0.00019178,2]
[366913049,1750567854440,-490.0,0.00019178,2]
[366913050,1750567854451,-490.0,0.00019178,2]
[366913051,1750567854463,-9178.47,0.00019178,2]
[366913052,1750567854474,-3678.01,0.00019178,2]
[366913053,1750567854485,-765.85,0.00019178,2]
[366913054,1750567854497,-2066.75,0.00019178,2]
[366913055,1750567854508,-1729.7,0.00019178,2]
[366913056,1750567854519,-490.0,0.00019178,2]
[366913057,1750567854530,-490.0,0.00019178,2]
[366913058,1750567854541,-613.5,0.00019178,2]
[366913059,1750567854552,-5586.05,0.00019178,2]
[366913060,1750567854563,-490.0,0.00019178,2]
[366913061,1750567854574,-490.0,0.00019178,2]
[366913062,1750567854585,-590.64,0.00019178,2]
[366913063,1750567854596,-2537.11,0.00019178,2]
[366913064,1750567854607,-490.0,0.00019178,2]
[366913065,1750567854618,-360.2925067,0.00019178,2]
[366913066,1750567854631,-490.0,0.00019178,2]
[366913067,1750567854642,-795.21,0.00019178,2]
[366913068,1750567854653,-5014.61,0.00019178,2]
[366913069,1750567854664,-490.0,0.00019178,2]
[366913070,1750567854674,-2645.12,0.00019178,2]
[366913071,1750567854685,-3424.41,0.00019178,2]
[366913072,1750567854696,-490.0,0.00019178,2]
[366913073,1750567854707,-490.0,0.00019178,2]
[366913074,1750567854718,-830.07,0.00019178,2]
[366913075,1750567854729,-2740.57,0.00019178,2]
[366913076,1750567854740,-490.0,0.00019178,2]
[366913077,1750567854751,-490.0,0.00019178,2]
[366913078,1750567854763,-1537.62,0.00019178,2]
[366913079,1750567854774,-3550.61,0.00019178,2]
[366913080,1750567854784,-490.0,0.00019178,2]
[366913081,1750567854795,-396.67342667,0.00019178,2]
[366913082,1750567854807,-500.0,0.00019178,2]
[366913083,1750567854819,-500.0,0.00019178,2]
[366913084,1750567854830,-500.0,0.00019178,2]
[366913085,1750567854841,-1882.91,0.00019178,2]
[366913086,1750567854852,-500.0,0.00019178,2]
[366913087,1750567854869,-500.0,0.00019178,2]
[366913088,1750567854881,-490.0,0.00019178,2]
[366913089,1750567854895,-500.0,0.00019178,2]
[366913090,1750567854908,-500.0,0.00019178,2]
[366913091,1750567854919,-490.0,0.00019178,2]
[366913092,1750567854932,-500.0,0.00019178,2]
[366913093,1750567854944,-500.0,0.00019178,2]
[366913094,1750567854957,-2261.42,0.00019178,2]
[366913095,1750567854972,-500.0,0.00019178,2]
[366913096,1750567855004,-2064.18,0.00019178,2]
[366913097,1750567855021,-4039.42,0.00019178,2]
[366913098,1750567855040,-490.0,0.00019178,2]
[366913099,1750567855061,-490.0,0.00019178,2]
[366913100,1750567855078,-490.0,0.00019178,2]
[366913101,1750567855094,-1957.13,0.00019178,2]
[366913102,1750567855111,-150.0,0.00019178,2]
[366913103,1750567855134,-150.0,0.00019178,2]
[366913104,1750567855152,-1484.56,0.00019178,2]
[366913105,1750567855172,-150.0,0.00019178,2]
[366913106,1750567855191,-731.27,0.00019178,2]
[366913107,1750567855209,-1663.19,0.00019178,2]
[366913108,1750567855232,-490.0,0.00019178,2]
[366913109,1750567855249,-500.0,0.00019178,2]
[366913110,1750567855263,-490.0,0.00019178,2]
[366913111,1750567855283,-601.53,0.00019178,2]
[366913112,1750567855295,-2432.19,0.00019178,2]
[366913113,1750567855310,-490.0,0.00019178,2]
[366913114,1750567855330,-150.0,0.00019178,2]
[366913115,1750567855343,-490.0,0.00019178,2]
[366913116,1750567855360,-490.0,0.00019178,2]
[366913117,1750567855377,-500.0,0.00019178,2]
[366913118,1750567855394,-150.0,0.00019178,2]
[366913119,1750567855411,-150.0,0.00019178,2]
[366913120,1750567855430,-669.04,0.00019178,2]
[366913121,1750567855449,-500.0,0.00019178,2]
[366913122,1750567855465,-490.0,0.00019178,2]
[366913123,1750567855480,-2890.25,0.00019178,2]
[366913124,1750567855496,-490.0,0.00019178,2]
[366913125,1750567855512,-490.0,0.00019178,2]
[366913126,1750567855527,-925.16,0.00019178,2]
[366913127,1750567855542,-490.0,0.00019178,2]
[366913128,1750567855558,-490.0,0.00019178,2]
[366913129,1750567855573,-490.0,0.00019178,2]
[366913130,1750567855588,-1791.07,0.00019178,2]
[366913131,1750567855603,-552.2,0.00019178,2]
[366913132,1750567855618,-490.0,0.00019178,2]
[366913133,1750567855632,-13783.68,0.00019178,2]
[366913134,1750567855647,-5557.13,0.00019178,2]
[366913135,1750567855662,-490.0,0.00019178,2]
[366913136,1750567855676,-490.0,0.00019178,2]
[366913137,1750567855698,-2635.93,0.00019178,2]
[366913138,1750567855713,-490.0,0.00019178,2]
[366913139,1750567855727,-490.0,0.00019178,2]
[366913140,1750567855741,-490.0,0.00019178,2]
[366913141,1750567855755,-678.88,0.00019178,2]
[366913142,1750567855770,-490.0,0.00019178,2]
[366913143,1750567855784,-1937.39,0.00019178,2]
[366913144,1750567855799,-490.0,0.00019178,2]
[366913145,1750567855813,-492.01847776,0.00019178,2]
[366913146,1750567855827,-880.46,0.00019178,2]
[366913147,1750567855842,-1653.79,0.00019178,2]
[366913148,1750567855855,-11139.02,0.00019178,2]
[366913149,1750567855870,-490.0,0.00019178,2]
[366913150,1750567855883,-490.0,0.00019178,2]
[366913151,1750567855897,-490.0,0.00019178,2]
[366913152,1750567855914,-944.32,0.00019178,2]
[366913153,1750567855928,-490.0,0.00019178,2]
[366913154,1750567855942,-721.4,0.00019178,2]
[366913155,1750567855955,-490.0,0.00019178,2]
[366913156,1750567855969,-614.72,0.00019178,2]
[366913157,1750567855982,-721.4,0.00019178,2]
[366913158,1750567856000,-721.4,0.00019178,2]
[366913159,1750567856019,-721.4,0.00019178,2]
[366913160,1750567856038,-721.4,0.00019178,2]
[366913161,1750567856054,-721.4,0.00019178,2]
[366913162,1750567856071,-25277.71,0.00019178,2]
[366913163,1750567856087,-728.11,0.00019178,2]
[366913164,1750567856103,-721.4,0.00019178,2]
[366913165,1750567856118,-721.4,0.00019178,2]
[366913166,1750567856137,-490.0,0.00019178,2]
[366913167,1750567856152,-721.4,0.00019178,2]
[366913168,1750567856167,-721.4,0.00019178,2]
[366913169,1750567856182,-938.63,0.00019178,2]
[366913170,1750567856198,-707.62,0.00019178,2]
[366913171,1750567856212,-2459.58,0.00019178,2]
[366913172,1750567856227,-1431.27,0.00019178,2]
[366913173,1750567856241,-4908.44,0.00019178,2]
[366913174,1750567856256,-490.0,0.00019178,2]
[366913175,1750567856270,-490.0,0.00019178,2]
[366913176,1750567856284,-490.0,0.00019178,2]
[366913177,1750567856298,-490.0,0.00019178,2]
[366913178,1750567856313,-490.0,0.00019178,2]
[366913179,1750567856329,-625.18,0.00019178,2]
[366913180,1750567856343,-1153.14,0.00019178,2]
[366913181,1750567856357,-490.0,0.00019178,2]
[366913182,1750567856371,-6460.81,0.00019178,2]
[366913183,1750567856385,-490.0,0.00019178,2]
[366913184,1750567856399,-4799.23,0.00019178,2]
[366913185,1750567856414,-490.0,0.00019178,2]
[366913186,1750567856429,-874.98,0.00019178,2]
[366913187,1750567856443,-490.0,0.00019178,2]
[366913188,1750567856457,-490.0,0.00019178,2]
[366913189,1750567856471,-1088.23,0.00019178,2]